[Event "The Kvibergspelen 2024"]
[Site "Kviberg Park Hotel & Conference, Krutvagen 2, Gothenburg, Sweden"]
[Date "2024.09.08"]
[Round "7.9"]
[White "Wickstrom, Carina"]
[Black "Eriksson, Kristian"]
[Result "1-0"]
[TimeControl "15 minutes + 5 seconds per move from move one (Round 1 - 4) / 90 minutes + 30 seconds per move from move one (Round 5 - 8)"]
[WhiteFideId "1743201"]
[BlackFideId "1705172"]
[WhiteElo "2015"]
[BlackElo "2051"]

1. Nf3 {[%clk 01:30:57]} {[%emt 00:00:03]} e6 {[%clk 01:30:06]} {[%emt
00:00:54]} 2. g3 {[%clk 01:31:20]} {[%emt 00:00:08]} f5 {[%clk 01:30:11]}
{[%emt 00:00:25]} 3. Bg2 {[%clk 01:31:44]} {[%emt 00:00:06]} Nf6 {[%clk
01:30:32]} {[%emt 00:00:08]} 4. O-O {[%clk 01:31:58]} {[%emt 00:00:16]} Be7
{[%clk 01:30:49]} {[%emt 00:00:13]} 5. c4 {[%clk 01:31:06]} {[%emt 00:01:22]}
O-O {[%clk 01:30:49]} {[%emt 00:00:31]} 6. Nc3 {[%clk 01:29:22]} {[%emt
00:02:14]} d6 {[%clk 01:30:36]} {[%emt 00:00:42]} 7. d4 {[%clk 01:27:15]}
{[%emt 00:02:38]} Ne4 {[%clk 01:28:26]} {[%emt 00:02:38]} 8. Qb3 {[%clk
01:23:07]} {[%emt 00:04:39]} Bf6 {[%clk 01:22:40]} {[%emt 00:06:15]} 9. e3
{[%clk 01:07:25]} {[%emt 00:16:14]} Kh8 {[%clk 01:07:26]} {[%emt 00:15:43]} 10.
Nd2 {[%clk 01:01:12]} {[%emt 00:06:43]} Nxc3 {[%clk 01:03:43]} {[%emt
00:04:13]} 11. bxc3 {[%clk 01:01:16]} {[%emt 00:00:26]} Nc6 {[%clk 00:57:22]}
{[%emt 00:06:50]} 12. Ba3 {[%clk 00:55:54]} {[%emt 00:05:53]} e5 {[%clk
00:47:17]} {[%emt 00:10:35]} 13. c5 {[%clk 00:52:59]} {[%emt 00:03:25]} Be7
{[%clk 00:42:32]} {[%emt 00:05:14]} 14. cxd6 {[%clk 00:48:53]} {[%emt
00:04:37]} Bxd6 {[%clk 00:40:50]} {[%emt 00:02:11]} 15. Rab1 {[%clk 00:47:19]}
{[%emt 00:02:04]} Qe7 {[%clk 00:36:51]} {[%emt 00:04:30]} 16. Nc4 {[%clk
00:46:27]} {[%emt 00:01:22]} Bxa3 {[%clk 00:32:12]} {[%emt 00:05:09]} 17. Qxa3
{[%clk 00:41:49]} {[%emt 00:05:09]} e4 {[%clk 00:30:38]} {[%emt 00:02:04]} 18.
Qxe7 {[%clk 00:41:12]} {[%emt 00:01:06]} Nxe7 {[%clk 00:30:38]} {[%emt
00:00:30]} 19. Ne5 {[%clk 00:41:03]} {[%emt 00:00:40]} b6 {[%clk 00:29:19]}
{[%emt 00:01:48]} 20. Rfc1 {[%clk 00:37:20]} {[%emt 00:04:13]} Bb7 {[%clk
00:27:59]} {[%emt 00:01:49]} 21. c4 {[%clk 00:37:09]} {[%emt 00:00:43]} Nc6
{[%clk 00:23:10]} {[%emt 00:05:17]} 22. f4 {[%clk 00:27:10]} {[%emt 00:10:31]}
Na5 {[%clk 00:14:17]} {[%emt 00:09:21]} 23. Bf1 {[%clk 00:24:29]} {[%emt
00:03:12]} Kg8 {[%clk 00:11:13]} {[%emt 00:03:34]} 24. Rb5 {[%clk 00:18:56]}
{[%emt 00:06:04]} Ba6 {[%clk 00:08:34]} {[%emt 00:03:09]} 25. Rb2 {[%clk
00:18:33]} {[%emt 00:00:52]} Rac8 {[%clk 00:07:45]} {[%emt 00:01:17]} 26. c5
{[%clk 00:17:17]} {[%emt 00:01:48]} Bxf1 {[%clk 00:07:53]} {[%emt 00:00:22]} 27.
Kxf1 {[%clk 00:17:45]} {[%emt 00:00:02]} Rfd8 {[%clk 00:04:27]} {[%emt
00:03:55]} 28. Ke2 {[%clk 00:17:30]} {[%emt 00:00:45]} Kf8 {[%clk 00:04:05]}
{[%emt 00:00:52]} 29. Kd2 {[%clk 00:16:31]} {[%emt 00:01:29]} Ke8 {[%clk
00:00:57]} {[%emt 00:03:39]} 30. Rbc2 {[%clk 00:15:19]} {[%emt 00:01:42]} b5
{[%clk 00:01:12]} {[%emt 00:00:16]} 31. c6 {[%clk 00:12:43]} {[%emt 00:03:06]}
a6 {[%clk 00:01:18]} {[%emt 00:00:24]} 32. Kc3 {[%clk 00:12:30]} {[%emt
00:00:42]} Rb8 {[%clk 00:00:42]} {[%emt 00:01:06]} 33. Kb4 {[%clk 00:12:26]}
{[%emt 00:00:34]} Nc4 {[%clk 00:01:05]} {[%emt 00:00:07]} 34. Nxc4 {[%clk
00:12:43]} {[%emt 00:00:12]} bxc4+ {[%clk 00:01:29]} {[%emt 00:00:07]} 35. Kxc4
{[%clk 00:13:05]} {[%emt 00:00:09]} Rb6 {[%clk 00:01:35]} {[%emt 00:00:24]} 36.
d5 {[%clk 00:12:17]} {[%emt 00:01:18]} Rdb8 {[%clk 00:01:35]} {[%emt 00:00:29]}
37. Kd4 {[%clk 00:11:47]} {[%emt 00:01:00]} Ke7 {[%clk 00:01:30]} {[%emt
00:00:35]} 38. Ke5 {[%clk 00:10:56]} {[%emt 00:01:21]} g6 {[%clk 00:01:57]}
{[%emt 00:00:03]} 39. h3 {[%clk 00:10:31]} {[%emt 00:00:54]} Re8 {[%clk
00:01:28]} {[%emt 00:01:00]} 40. g4 {[%clk 00:09:51]} {[%emt 00:01:10]} Rb4
{[%clk 00:01:08]} {[%emt 00:00:50]} 41. Rc4 {[%clk 00:10:12]} {[%emt 00:00:08]}
Kf7+ {[%clk 00:01:06]} {[%emt 00:00:33]} 42. Kd4 {[%clk 00:10:24]} {[%emt
00:00:18]} Rb2 {[%clk 00:01:07]} {[%emt 00:00:30]} 43. R1c2 {[%clk 00:10:23]}
{[%emt 00:00:31]} Rb5 {[%clk 00:00:44]} {[%emt 00:00:52]} 44. gxf5 {[%clk
00:10:15]} {[%emt 00:00:38]} gxf5 {[%clk 00:01:10]} {[%emt 00:00:05]} 45. Ra4
{[%clk 00:08:39]} {[%emt 00:02:05]} Rb6 {[%clk 00:01:00]} {[%emt 00:00:40]} 46.
Ra5 {[%clk 00:07:40]} {[%emt 00:01:29]} Kf6 {[%clk 00:00:54]} {[%emt 00:00:35]}
47. Kc5 {[%clk 00:06:45]} {[%emt 00:01:26]} Rd8 {[%clk 00:00:48]} {[%emt
00:00:36]} 48. Rd2 {[%clk 00:06:38]} {[%emt 00:00:37]} Rd6 {[%clk 00:01:03]}
{[%emt 00:00:16]} 49. Ra3 {[%clk 00:06:14]} {[%emt 00:00:53]} Rb5+ {[%clk
00:00:35]} {[%emt 00:00:58]} 50. Kc4 {[%clk 00:06:35]} {[%emt 00:00:09]} Rb6
{[%clk 00:01:03]} {[%emt 00:00:02]} 51. Rd4 {[%clk 00:06:24]} {[%emt 00:00:41]}
Rd8 {[%clk 00:01:11]} {[%emt 00:00:23]} 52. Rb3 {[%clk 00:06:32]} {[%emt
00:00:21]} Rdb8 {[%clk 00:01:00]} {[%emt 00:00:41]} 53. Rxb6 {[%clk 00:06:46]}
{[%emt 00:00:16]} Rxb6 {[%clk 00:01:28]} {[%emt 00:00:02]} 54. Rd2 {[%clk
00:06:55]} {[%emt 00:00:21]} Ke7 {[%clk 00:01:10]} {[%emt 00:00:48]} 55. Rg2
{[%clk 00:05:50]} {[%emt 00:01:35]} Kf6 {[%clk 00:01:34]} {[%emt 00:00:05]} 56.
a4 {[%clk 00:05:51]} {[%emt 00:00:29]} a5 {[%clk 00:01:38]} {[%emt 00:00:27]}
57. Kc5 {[%clk 00:05:54]} {[%emt 00:00:28]} Rb3 {[%clk 00:01:32]} {[%emt
00:00:35]} 58. Rg3 {[%clk 00:04:54]} {[%emt 00:01:29]} h5 {[%clk 00:00:52]}
{[%emt 00:01:11]} 59. h4 {[%clk 00:04:43]} {[%emt 00:00:41]} Rb4 {[%clk
00:00:52]} {[%emt 00:00:30]} 60. d6 {[%clk 00:04:45]} {[%emt 00:00:29]} cxd6+
{[%clk 00:00:54]} {[%emt 00:00:28]} 61. Kxd6 {[%clk 00:05:08]} {[%emt
00:00:06]} Rxa4 {[%clk 00:00:34]} {[%emt 00:00:50]} 62. c7 {[%clk 00:05:31]}
{[%emt 00:00:07]} 1-0

[Event "The Kvibergspelen 2024"]
[Site "Kviberg Park Hotel & Conference, Krutvagen 2, Gothenburg, Sweden"]
[Date "2024.09.08"]
[Round "7.10"]
[White "Thyberg, Andre"]
[Black "Nilsson, Oliver"]
[Result "0-1"]
[TimeControl "15 minutes + 5 seconds per move from move one (Round 1 - 4) / 90 minutes + 30 seconds per move from move one (Round 5 - 8)"]
[WhiteFideId "1764764"]
[BlackFideId "1730177"]
[WhiteElo "1994"]
[BlackElo "2050"]

1. e4 {[%clk 01:30:30]} {[%emt 13:23:49]} c5 {[%clk 01:23:55]} {[%emt
00:07:00]} 2. Nf3 {[%clk 01:29:58]} {[%emt 00:01:38]} e6 {[%clk 01:23:52]}
{[%emt 00:00:34]} 3. d4 {[%clk 01:30:17]} {[%emt 00:00:11]} cxd4 {[%clk
01:24:16]} {[%emt 00:00:07]} 4. c3 {[%clk 01:30:40]} {[%emt 00:00:06]} dxc3
{[%clk 01:23:49]} {[%emt 00:00:56]} 5. Nxc3 {[%clk 01:31:00]} {[%emt 00:00:10]}
Nc6 {[%clk 01:23:39]} {[%emt 00:00:41]} 6. Bc4 {[%clk 01:31:02]} {[%emt
00:00:27]} Bb4 {[%clk 01:23:04]} {[%emt 00:01:05]} 7. O-O {[%clk 01:31:01]}
{[%emt 00:00:31]} Nge7 {[%clk 01:22:56]} {[%emt 00:00:39]} 8. Nb5 {[%clk
01:26:58]} {[%emt 00:04:33]} d5 {[%clk 01:22:16]} {[%emt 00:01:10]} 9. exd5
{[%clk 01:27:03]} {[%emt 00:00:25]} exd5 {[%clk 01:22:41]} {[%emt 00:00:05]} 10.
Bf4 {[%clk 01:24:44]} {[%emt 00:02:48]} O-O {[%clk 01:16:49]} {[%emt 00:06:22]}
11. Bb3 {[%clk 01:11:47]} {[%emt 00:13:28]} Be6 {[%clk 01:13:27]} {[%emt
00:03:52]} 12. Qe2 {[%clk 01:09:19]} {[%emt 00:02:57]} Rc8 {[%clk 01:10:27]}
{[%emt 00:03:32]} 13. Rad1 {[%clk 00:54:02]} {[%emt 00:15:45]} Qd7 {[%clk
01:04:38]} {[%emt 00:06:20]} 14. a3 {[%clk 00:45:42]} {[%emt 00:08:50]} Bc5
{[%clk 01:03:55]} {[%emt 00:01:13]} 15. Ng5 {[%clk 00:44:07]} {[%emt 00:02:05]}
h6 {[%clk 00:54:19]} {[%emt 00:10:05]} 16. Ne4 {[%clk 00:37:53]} {[%emt
00:06:45]} Bb6 {[%clk 00:42:47]} {[%emt 00:12:02]} 17. h3 {[%clk 00:37:52]}
{[%emt 00:00:31]} a6 {[%clk 00:26:45]} {[%emt 00:16:32]} 18. Nbc3 {[%clk
00:34:58]} {[%emt 00:03:23]} Nd4 {[%clk 00:21:20]} {[%emt 00:05:55]} 19. Qh5
{[%clk 00:25:30]} {[%emt 00:09:58]} dxe4 {[%clk 00:20:33]} {[%emt 00:01:19]} 20.
Ba4 {[%clk 00:23:40]} {[%emt 00:02:19]} Nec6 {[%clk 00:19:08]} {[%emt
00:01:54]} 21. Nxe4 {[%clk 00:22:51]} {[%emt 00:01:19]} Qd5 {[%clk 00:16:25]}
{[%emt 00:03:13]} 22. Nf6+ {[%clk 00:18:26]} {[%emt 00:04:55]} gxf6 {[%clk
00:16:37]} {[%emt 00:00:18]} 23. Qxh6 {[%clk 00:18:50]} {[%emt 00:00:06]} Qf5
{[%clk 00:16:05]} {[%emt 00:01:02]} 24. Rfe1 {[%clk 00:14:18]} {[%emt
00:05:03]} Qg6 {[%clk 00:15:23]} {[%emt 00:01:12]} 0-1

[Event "The Kvibergspelen 2024"]
[Site "Kviberg Park Hotel & Conference, Krutvagen 2, Gothenburg, Sweden"]
[Date "2024.09.08"]
[Round "7.11"]
[White "Lehtonen, Ture"]
[Black "Ostensson, Julia"]
[Result "1-0"]
[TimeControl "15 minutes + 5 seconds per move from move one (Round 1 - 4) / 90 minutes + 30 seconds per move from move one (Round 5 - 8)"]
[WhiteFideId "1712446"]
[BlackFideId "1747703"]
[WhiteElo "2099"]
[BlackElo "2016"]

1. b4 {[%clk 01:30:59]} Nf6 {[%clk 01:30:56]} {[%emt 00:00:05]} 2. Bb2 {[%clk
01:31:23]} {[%emt 00:00:06]} g6 {[%clk 01:31:23]} {[%emt 00:00:03]} 3. Nf3
{[%clk 01:31:32]} {[%emt 00:00:20]} Bg7 {[%clk 01:31:48]} {[%emt 00:00:05]} 4.
c4 {[%clk 01:31:53]} {[%emt 00:00:09]} O-O {[%clk 01:32:09]} {[%emt 00:00:10]}
5. e3 {[%clk 01:31:50]} {[%emt 00:00:31]} d6 {[%clk 01:31:53]} {[%emt
00:00:48]} 6. Be2 {[%clk 01:31:04]} {[%emt 00:01:14]} a5 {[%clk 01:28:29]}
{[%emt 00:03:56]} 7. b5 {[%clk 01:31:13]} {[%emt 00:00:20]} e5 {[%clk
01:28:24]} {[%emt 00:00:36]} 8. d3 {[%clk 01:30:45]} {[%emt 00:00:56]} e4
{[%clk 01:24:55]} {[%emt 00:04:01]} 9. dxe4 {[%clk 01:30:46]} {[%emt 00:00:28]}
Nxe4 {[%clk 01:25:19]} {[%emt 00:00:07]} 10. Bxg7 {[%clk 01:31:09]} {[%emt
00:00:07]} Kxg7 {[%clk 01:25:46]} {[%emt 00:00:03]} 11. O-O {[%clk 01:25:56]}
{[%emt 00:05:43]} Qf6 {[%clk 01:24:18]} {[%emt 00:01:58]} 12. Nd4 {[%clk
01:16:24]} {[%emt 00:10:02]} Nd7 {[%clk 01:23:22]} {[%emt 00:01:26]} 13. Qc2
{[%clk 01:13:29]} {[%emt 00:03:24]} Re8 {[%clk 01:22:32]} {[%emt 00:01:21]} 14.
Bf3 {[%clk 01:08:37]} {[%emt 00:05:22]} Ndc5 {[%clk 01:21:53]} {[%emt
00:01:09]} 15. Nc3 {[%clk 00:58:11]} {[%emt 00:10:56]} Nxc3 {[%clk 01:21:55]}
{[%emt 00:00:28]} 16. Qxc3 {[%clk 00:58:38]} {[%emt 00:00:02]} a4 {[%clk
01:20:37]} {[%emt 00:01:48]} 17. Rfd1 {[%clk 00:57:17]} {[%emt 00:01:50]} h5
{[%clk 01:15:25]} {[%emt 00:05:43]} 18. h3 {[%clk 00:54:29]} {[%emt 00:03:18]}
Re5 {[%clk 01:11:30]} {[%emt 00:04:26]} 19. Rac1 {[%clk 00:48:50]} {[%emt
00:06:08]} Bd7 {[%clk 01:07:02]} {[%emt 00:04:59]} 20. Bd5 {[%clk 00:47:13]}
{[%emt 00:02:06]} Re7 {[%clk 00:52:16]} {[%emt 00:15:16]} 21. Rd2 {[%clk
00:42:12]} {[%emt 00:05:32]} Rae8 {[%clk 00:50:15]} {[%emt 00:02:30]} 22. Bf3
{[%clk 00:40:22]} {[%emt 00:02:20]} Re5 {[%clk 00:46:19]} {[%emt 00:04:27]} 23.
Qa5 {[%clk 00:38:48]} {[%emt 00:02:03]} Qd8 {[%clk 00:35:34]} {[%emt 00:11:15]}
24. Ne2 {[%clk 00:34:19]} {[%emt 00:04:59]} Bf5 {[%clk 00:10:01]} {[%emt
00:26:04]} 25. Nf4 {[%clk 00:25:11]} {[%emt 00:09:37]} Be4 {[%clk 00:09:41]}
{[%emt 00:00:50]} 26. Bxe4 {[%clk 00:25:11]} {[%emt 00:00:30]} Nxe4 {[%clk
00:10:03]} {[%emt 00:00:09]} 27. Rd4 {[%clk 00:15:50]} {[%emt 00:09:51]} Nc5
{[%clk 00:07:06]} {[%emt 00:03:26]} 28. Nd5 {[%clk 00:12:45]} {[%emt 00:03:35]}
c6 {[%clk 00:03:01]} {[%emt 00:04:36]} 29. Qxd8 {[%clk 00:12:11]} {[%emt
00:01:04]} Rxd8 {[%clk 00:03:26]} {[%emt 00:00:05]} 30. bxc6 {[%clk 00:12:06]}
{[%emt 00:00:35]} bxc6 {[%clk 00:03:49]} {[%emt 00:00:07]} 31. Nb4 {[%clk
00:04:09]} {[%emt 00:08:26]} Ne6 {[%clk 00:01:00]} {[%emt 00:03:19]} 32. Nxc6
{[%clk 00:04:33]} {[%emt 00:00:07]} Rc8 {[%clk 00:00:33]} {[%emt 00:00:57]} 33.
Nxe5 {[%clk 00:04:15]} {[%emt 00:00:48]} Nxd4 {[%clk 00:00:31]} {[%emt
00:00:32]} 34. exd4 {[%clk 00:04:36]} {[%emt 00:00:09]} dxe5 {[%clk 00:00:58]}
{[%emt 00:00:03]} 35. dxe5 {[%clk 00:04:57]} {[%emt 00:00:09]} Rc5 {[%clk
00:01:10]} {[%emt 00:00:18]} 36. f4 {[%clk 00:05:12]} {[%emt 00:00:14]} f6
{[%clk 00:00:43]} {[%emt 00:00:58]} 37. exf6+ {[%clk 00:05:10]} {[%emt
00:00:31]} Kxf6 {[%clk 00:01:06]} {[%emt 00:00:08]} 38. Kf2 {[%clk 00:04:27]}
{[%emt 00:01:12]} Kf5 {[%clk 00:01:24]} {[%emt 00:00:13]} 39. Ke3 {[%clk
00:04:14]} {[%emt 00:00:42]} h4 {[%clk 00:00:41]} {[%emt 00:01:13]} 40. Rc3
{[%clk 00:01:48]} {[%emt 00:02:56]} Ke6 {[%clk 00:00:38]} {[%emt 00:00:34]} 41.
Kd4 {[%clk 00:01:03]} {[%emt 00:01:14]} Rf5 {[%clk 00:01:03]} {[%emt 00:00:05]}
42. Ke4 {[%clk 00:01:10]} {[%emt 00:00:23]} Kd6 {[%clk 00:01:18]} {[%emt
00:00:16]} 43. g4 {[%clk 00:00:58]} {[%emt 00:00:43]} hxg3 {[%clk 00:01:33]}
{[%emt 00:00:14]} 44. Rxg3 {[%clk 00:01:27]} Rf6 {[%clk 00:01:48]} {[%emt
00:00:15]} 45. Rg5 {[%clk 00:01:46]} {[%emt 00:00:11]} Re6+ {[%clk 00:02:06]}
{[%emt 00:00:12]} 46. Kd4 {[%clk 00:01:50]} {[%emt 00:00:26]} Rf6 {[%clk
00:02:32]} {[%emt 00:00:04]} 47. Ke4 {[%clk 00:02:00]} {[%emt 00:00:20]} Kc6
{[%clk 00:02:13]} {[%emt 00:00:49]} 48. h4 {[%clk 00:02:10]} {[%emt 00:00:19]}
Re6+ {[%clk 00:02:23]} {[%emt 00:00:20]} 49. Re5 {[%clk 00:02:14]} {[%emt
00:00:26]} Rd6 {[%clk 00:02:39]} {[%emt 00:00:14]} 50. Ra5 {[%clk 00:02:33]}
{[%emt 00:00:12]} Re6+ {[%clk 00:03:00]} {[%emt 00:00:09]} 51. Kf3 {[%clk
00:02:46]} {[%emt 00:00:17]} Kb6 {[%clk 00:03:21]} {[%emt 00:00:10]} 52. Rxa4
{[%clk 00:03:11]} {[%emt 00:00:05]} Kc5 {[%clk 00:03:46]} {[%emt 00:00:05]} 53.
h5 {[%clk 00:02:42]} {[%emt 00:00:59]} gxh5 {[%clk 00:04:08]} {[%emt 00:00:08]}
54. Ra5+ {[%clk 00:03:06]} {[%emt 00:00:05]} Kxc4 {[%clk 00:04:34]} {[%emt
00:00:05]} 55. Rxh5 {[%clk 00:03:32]} {[%emt 00:00:03]} Kd4 {[%clk 00:04:20]}
{[%emt 00:00:44]} 56. Rh2 {[%clk 00:03:35]} {[%emt 00:00:26]} Re3+ {[%clk
00:02:54]} {[%emt 00:01:58]} 57. Kg4 {[%clk 00:03:49]} {[%emt 00:00:15]} Ke4
{[%clk 00:01:29]} {[%emt 00:01:56]} 58. Rg2 {[%clk 00:01:57]} {[%emt 00:02:22]}
Re1 {[%clk 00:01:25]} {[%emt 00:00:33]} 59. Kg5 {[%clk 00:01:32]} {[%emt
00:00:55]} Rf1 {[%clk 00:00:39]} {[%emt 00:01:17]} 60. Re2+ {[%clk 00:01:44]}
{[%emt 00:00:17]} Kd5 {[%clk 00:01:04]} {[%emt 00:00:05]} 61. f5 {[%clk
00:02:02]} {[%emt 00:00:13]} Kd6 {[%clk 00:00:50]} {[%emt 00:00:44]} 62. Kg6
{[%clk 00:02:18]} {[%emt 00:00:13]} Kd7 {[%clk 00:01:07]} {[%emt 00:00:13]} 63.
f6 {[%clk 00:02:40]} {[%emt 00:00:09]} Rg1+ {[%clk 00:00:39]} {[%emt 00:00:58]}
64. Kf7 {[%clk 00:03:02]} {[%emt 00:00:08]} Rd1 {[%clk 00:00:32]} {[%emt
00:00:37]} 65. Kf8 {[%clk 00:02:05]} {[%emt 00:01:26]} Rb1 {[%clk 00:00:37]}
{[%emt 00:00:25]} 66. f7 {[%emt 00:00:45]} Rf1 {[%clk 00:00:47]} 67. Rd2+
{[%clk 00:00:50]} {[%emt 00:01:50]} Ke6 {[%clk 00:01:08]} {[%emt 00:00:09]} 68.
Ke8 {[%clk 00:01:01]} {[%emt 00:00:18]} Rb1 {[%clk 00:01:02]} {[%emt 00:00:36]}
69. f8=Q {[%clk 00:01:15]} {[%emt 00:00:16]} 1-0

[Event "The Kvibergspelen 2024"]
[Site "Kviberg Park Hotel & Conference, Krutvagen 2, Gothenburg, Sweden"]
[Date "2024.09.08"]
[Round "7.12"]
[White "Andersson, Johan"]
[Black "Stedman, Theodor"]
[Result "1-0"]
[TimeControl "15 minutes + 5 seconds per move from move one (Round 1 - 4) / 90 minutes + 30 seconds per move from move one (Round 5 - 8)"]
[WhiteFideId "1703935"]
[BlackFideId "1756230"]
[WhiteElo "2158"]
[BlackElo "1932"]

1. e4 {[%clk 01:30:55]} {[%emt 00:00:04]} e5 {[%clk 01:26:00]} {[%emt
00:05:02]} 2. Nf3 {[%clk 01:31:12]} {[%emt 00:00:12]} Nc6 {[%clk 01:26:26]}
{[%emt 00:00:06]} 3. c3 {[%clk 01:31:21]} {[%emt 00:00:19]} d5 {[%clk
01:26:51]} {[%emt 00:00:05]} 4. Qa4 {[%clk 01:31:41]} {[%emt 00:00:10]} Bd7
{[%clk 01:27:01]} {[%emt 00:00:22]} 5. exd5 {[%clk 01:31:54]} {[%emt 00:00:16]}
Nd4 {[%clk 01:27:26]} {[%emt 00:00:05]} 6. Qd1 {[%clk 01:32:13]} {[%emt
00:00:11]} Nxf3+ {[%clk 01:27:47]} {[%emt 00:00:09]} 7. Qxf3 {[%clk 01:32:34]}
{[%emt 00:00:09]} Nf6 {[%clk 01:28:14]} {[%emt 00:00:02]} 8. Bc4 {[%clk
01:32:37]} {[%emt 00:00:26]} Bd6 {[%clk 01:28:01]} {[%emt 00:00:45]} 9. d3
{[%clk 01:32:30]} {[%emt 00:00:37]} c6 {[%clk 01:27:22]} {[%emt 00:01:09]} 10.
Bg5 {[%clk 01:26:36]} {[%emt 00:06:23]} h6 {[%clk 01:13:10]} {[%emt 00:14:42]}
11. Bxf6 {[%clk 01:25:37]} {[%emt 00:01:29]} Qxf6 {[%clk 01:12:35]} {[%emt
00:01:06]} 12. Qxf6 {[%clk 01:25:04]} {[%emt 00:01:02]} gxf6 {[%clk 01:13:04]}
{[%emt 00:00:02]} 13. Nd2 {[%clk 01:23:34]} {[%emt 00:02:00]} f5 {[%clk
01:11:48]} {[%emt 00:01:46]} 14. O-O-O {[%clk 01:06:57]} {[%emt 00:17:07]} b5
{[%clk 01:08:56]} {[%emt 00:03:22]} 15. Bb3 {[%clk 01:07:06]} {[%emt 00:00:20]}
Rg8 {[%clk 01:08:10]} {[%emt 00:01:16]} 16. g3 {[%clk 01:07:07]} {[%emt
00:00:30]} a5 {[%clk 01:08:04]} {[%emt 00:00:36]} 17. dxc6 {[%clk 01:02:15]}
{[%emt 00:05:22]} Bxc6 {[%clk 01:08:17]} {[%emt 00:00:16]} 18. Rhe1 {[%clk
01:01:40]} {[%emt 00:01:04]} a4 {[%clk 00:57:18]} {[%emt 00:11:31]} 19. Bc2
{[%clk 01:01:59]} {[%emt 00:00:10]} Kf8 {[%clk 00:55:28]} {[%emt 00:02:21]} 20.
d4 {[%clk 00:51:37]} {[%emt 00:10:51]} exd4 {[%clk 00:43:17]} {[%emt 00:12:42]}
21. cxd4 {[%clk 00:51:44]} {[%emt 00:00:23]} f4 {[%clk 00:41:28]} {[%emt
00:02:18]} 22. Be4 {[%clk 00:39:12]} {[%emt 00:13:02]} Rc8 {[%clk 00:38:39]}
{[%emt 00:03:19]} 23. Bxc6 {[%clk 00:32:13]} {[%emt 00:07:30]} Rxc6+ {[%clk
00:39:08]} 24. Kb1 {[%clk 00:32:33]} {[%emt 00:00:09]} fxg3 {[%clk 00:38:42]}
{[%emt 00:00:56]} 25. hxg3 {[%clk 00:32:27]} {[%emt 00:00:37]} Rg4 {[%clk
00:37:37]} {[%emt 00:01:35]} 26. Re4 {[%clk 00:25:14]} {[%emt 00:07:42]} Rg6
{[%clk 00:37:14]} {[%emt 00:00:53]} 27. Rc1 {[%clk 00:22:53]} {[%emt 00:02:51]}
Bb4 {[%clk 00:36:37]} {[%emt 00:01:09]} 28. Rxc6 {[%clk 00:21:56]} {[%emt
00:01:26]} Rxc6 {[%clk 00:37:01]} {[%emt 00:00:06]} 29. d5 {[%clk 00:22:04]}
{[%emt 00:00:22]} 1-0

[Event "The Kvibergspelen 2024"]
[Site "Kviberg Park Hotel & Conference, Krutvagen 2, Gothenburg, Sweden"]
[Date "2024.09.08"]
[Round "7.13"]
[White "Havner, Arvid"]
[Black "Rajcevski, Dejan"]
[Result "0-1"]
[TimeControl "15 minutes + 5 seconds per move from move one (Round 1 - 4) / 90 minutes + 30 seconds per move from move one (Round 5 - 8)"]
[WhiteFideId "1769308"]
[BlackFideId "1759027"]
[WhiteElo "1893"]
[BlackElo "2131"]

1. e4 {[%clk 01:30:59]} e5 {[%clk 01:30:56]} {[%emt 00:00:05]} 2. Nf3 {[%clk
01:31:24]} {[%emt 00:00:04]} Nf6 {[%clk 01:31:22]} {[%emt 00:00:04]} 3. Nc3
{[%clk 01:31:50]} {[%emt 00:00:05]} Bb4 {[%clk 01:31:47]} {[%emt 00:00:04]} 4.
Nxe5 {[%clk 01:31:59]} {[%emt 00:00:21]} d6 {[%clk 01:32:00]} {[%emt 00:00:17]}
5. Nd3 {[%clk 01:32:25]} {[%emt 00:00:04]} Bxc3 {[%clk 01:32:19]} {[%emt
00:00:12]} 6. dxc3 {[%clk 01:32:50]} {[%emt 00:00:04]} Nxe4 {[%clk 01:32:42]}
{[%emt 00:00:07]} 7. Qe2 {[%clk 01:33:07]} {[%emt 00:00:13]} O-O {[%clk
01:32:32]} {[%emt 00:00:41]} 8. Be3 {[%clk 01:33:33]} {[%emt 00:00:04]} b5
{[%clk 01:30:10]} {[%emt 00:02:52]} 9. O-O-O {[%clk 01:32:58]} {[%emt
00:01:04]} Bb7 {[%clk 01:29:02]} {[%emt 00:01:38]} 10. f3 {[%clk 01:32:33]}
{[%emt 00:00:55]} Nf6 {[%clk 01:28:31]} {[%emt 00:01:02]} 11. Nf4 {[%clk
01:30:36]} {[%emt 00:02:26]} Re8 {[%clk 01:25:55]} {[%emt 00:03:06]} 12. Qd2
{[%clk 01:28:38]} {[%emt 00:02:28]} a6 {[%clk 01:23:17]} {[%emt 00:03:08]} 13.
c4 {[%clk 01:17:27]} {[%emt 00:11:41]} Nbd7 {[%clk 01:19:57]} {[%emt 00:03:50]}
14. cxb5 {[%clk 01:11:47]} {[%emt 00:06:10]} axb5 {[%clk 01:20:12]} {[%emt
00:00:15]} 15. Kb1 {[%clk 01:12:08]} {[%emt 00:00:10]} Bc6 {[%clk 01:07:36]}
{[%emt 00:13:05]} 16. Qc3 {[%clk 01:07:07]} {[%emt 00:05:31]} Ne5 {[%clk
01:05:08]} {[%emt 00:02:58]} 17. Bd4 {[%clk 01:05:11]} {[%emt 00:02:26]} Bd7
{[%clk 01:01:14]} {[%emt 00:04:24]} 18. g4 {[%clk 00:54:47]} {[%emt 00:10:54]}
b4 {[%clk 01:01:15]} {[%emt 00:00:30]} 19. Qd2 {[%clk 00:28:33]} {[%emt
00:26:43]} Nxf3 {[%clk 01:01:06]} {[%emt 00:00:39]} 20. Qxb4 {[%clk 00:28:37]}
{[%emt 00:00:26]} Ra4 {[%clk 00:58:03]} {[%emt 00:03:32]} 0-1